bitfinex-derivatives/quotes_ETHF0:USTF0_20210102
["timestamp","ask_amount","ask_price","bid_price","bid_amount"]
[1609614886050,18.64624958,781.97,781.54,16.98775624]
[1609614886651,18.64624958,781.97,781.91,6.01438]
[1609614889656,18.64624958,781.97,781.48,16.97687005]
[1609614890056,18.64624958,781.97,781.49,15.0]
[1609614890256,18.64624958,781.97,781.45,16.98385435]
[1609614890559,6.01438,781.91,781.76,6.01438]
[1609614891359,19.97858,781.91,781.76,6.01438]
[1609614892763,19.97858,781.91,781.32,16.9985834]
[1609614893665,19.97858,781.91,781.29,16.99572437]
[1609614894266,19.97858,781.91,781.12,15.0]
[1609614894267,19.97858,781.91,781.28,16.99923751]
[1609614894667,6.01438,781.8,781.68,6.01438]
[1609614894866,10.62838,781.8,781.68,6.01438]
[1609614896368,86.7126,781.69,781.68,6.01438]
[1609614903273,6.01438,781.71,781.68,6.01438]
[1609614904077,4.614,781.8,781.68,6.01438]
[1609614904277,1.45146681,781.9,781.68,6.01438]
[1609614904577,1.45146681,781.9,781.83,6.01438]
[1609614905575,1.45124921,781.92,781.83,6.01438]
[1609614906678,1.45105371,782.15,781.91,6.01438]
[1609614907282,104.5526,782.11,781.91,6.01438]
[1609614910486,3.261,782.18,781.91,6.01438]
[1609614924115,3.261,782.18,781.92,15.0]
[1609614925214,3.261,782.18,781.91,6.01438]
[1609614933919,3.261,782.18,781.91,21.01438]
[1609614936425,3.261,782.18,781.91,6.01438]
[1609614936724,3.261,782.18,781.92,15.0]
[1609614939526,3.464,782.34,781.92,4.395]
[1609614944733,84.8953,781.92,781.91,6.01438]
[1609614946737,4.106,782.14,781.91,6.01438]
[1609614949140,6.01438,782.03,781.91,6.01438]
[1609614949442,4.106,782.14,781.91,6.01438]
[1609614956248,90.9156,781.92,781.91,6.01438]
[1609614959351,90.9156,781.92,781.43,17.01931767]
[1609614960555,90.9156,781.92,781.36,4.587]
[1609614960755,90.9156,781.92,781.31,17.03281987]
[1609614961156,13.9772,781.66,781.54,6.01438]
[1609614961557,3.441,781.66,781.54,6.01438]
[1609614962155,93.5146,781.57,781.54,6.01438]
[1609614963861,3.441,781.66,781.54,6.01438]
[1609614965270,3.441,781.66,781.65,6.01438]
[1609614966969,18.64624958,781.97,781.65,6.01438]
[1609614967168,80.036,781.72,781.65,6.01438]
[1609614967368,83.542,781.72,781.65,6.01438]
[1609614968372,83.542,781.72,781.22,4.272]
[1609614968373,83.542,781.72,781.32,17.02462552]
[1609614968971,83.542,781.72,781.22,4.272]
[1609614969170,83.542,781.72,781.18,17.02760705]
[1609614969371,83.542,781.72,781.51,6.01438]
[1609614973271,83.542,781.72,781.7,6.01438]
[1609614974373,3.506,781.72,781.7,6.01438]
[1609614974574,95.185,781.95,781.7,6.01438]
[1609614975277,95.185,781.95,781.89,6.01438]
[1609614984189,95.185,781.95,781.35,15.0]
[1609614984890,95.185,781.95,781.34,2.973]
[1609614985193,95.185,781.95,781.33,17.00025117]
[1609614985392,95.185,781.95,781.77,6.01438]
[1609614987395,95.185,781.95,781.86,6.01438]
[1609614988196,95.185,781.95,781.32,16.99943263]
[1609614989198,95.185,781.95,781.31,17.00201017]
[1609614989395,6.01438,781.83,781.78,6.01438]
[1609614990497,95.185,781.95,781.78,6.01438]
[1609614991399,95.185,781.95,781.87,6.01438]
[1609614996904,96.185,781.95,781.87,6.01438]
[1609614997704,111.185,781.95,781.32,17.02854328]
[1609614998007,111.185,781.95,781.26,17.03989786]
[1609614998205,16.0,781.95,781.26,17.03989786]
[1609614998405,80.4059,781.79,781.26,17.03989786]
[1609614998606,84.1659,781.79,781.23,17.04347863]
[1609614999405,6.01438,781.65,781.47,6.01438]
[1609615001306,13.4484,781.56,781.47,6.01438]
[1609615001607,17.1164,781.56,781.47,6.01438]
[1609615001907,3.668,781.56,781.47,6.01438]
[1609615002108,84.4007,781.48,781.47,6.01438]
[1609615003910,84.4007,781.48,781.19,17.03959325]
[1609615004513,3.668,781.56,781.19,17.03959325]
[1609615004711,92.935,781.24,781.19,17.03959325]
[1609615005112,97.0597,781.2,781.19,17.03959325]
[1609615005512,97.0597,781.2,781.19,6.01438]
[1609615006413,6.01438,781.44,781.19,6.01438]
[1609615006613,15.0,781.43,781.03,17.04052446]
[1609615006813,0.4,781.19,781.03,17.04052446]
[1609615007014,73.1268,781.04,781.03,17.04052446]
[1609615007215,73.1268,781.04,780.88,20.13880164]
[1609615007620,6.01438,781.07,781.03,6.01438]
[1609615007814,73.3586,781.04,781.03,6.01438]
[1609615008214,73.3586,781.04,780.88,17.05195991]
[1609615008413,6.01438,781.07,780.88,17.05195991]
[1609615008816,81.8292,780.92,780.88,17.05195991]
[1609615009217,81.8292,780.92,780.81,17.051091]
[1609615009620,81.8292,780.92,780.91,6.01438]
[1609615009819,6.01438,780.96,780.91,6.01438]
[1609615010018,78.2392,780.95,780.91,6.01438]
[1609615010418,6.01438,780.96,780.91,6.01438]
[1609615010619,77.4381,780.92,780.91,6.01438]
[1609615011520,6.01438,780.96,780.91,6.01438]
[1609615011919,3.867,781.09,780.91,6.01438]
[1609615013023,0.4,781.19,780.91,6.01438]
[1609615013622,6.01438,781.17,781.07,6.01438]
[1609615013823,97.7805,781.12,781.07,6.01438]
[1609615015625,6.01438,781.09,781.07,6.01438]
[1609615015824,10.07138,781.09,781.07,6.01438]
[1609615016526,10.07138,781.09,780.67,21.43552182]
[1609615017526,10.07138,781.09,780.95,6.01438]
[1609615019529,6.01438,781.01,780.95,6.01438]
[1609615021131,4.057,781.09,780.95,6.01438]
[1609615021531,6.01438,781.09,781.08,6.01438]
[1609615021731,0.4,781.19,781.08,6.01438]
[1609615023431,0.4,781.19,781.09,15.0]
[1609615023634,0.4,781.19,781.18,6.01438]
[1609615024636,0.4,781.19,781.18,21.01438]
[1609615026539,0.4,781.19,781.18,6.01438]
[1609615026839,0.4,781.19,781.18,21.01438]
[1609615029342,0.4,781.19,781.18,6.01438]
[1609615030146,0.4,781.19,781.18,21.01438]
[1609615033649,13.86724958,781.97,781.18,21.01438]
[1609615035652,13.86724958,781.97,781.81,6.01438]
[1609615035953,13.86724958,781.97,781.24,4.659]
[1609615036151,18.66024958,781.97,781.24,4.659]
[1609615036652,18.66024958,781.97,781.46,16.97674185]
[1609615037152,18.66024958,781.97,781.31,20.06342219]
[1609615037153,18.66024958,781.97,781.34,16.99462901]
[1609615037353,18.66024958,781.97,781.34,31.99462901]
[1609615037753,6.01438,781.95,781.93,6.01438]
[1609615038356,18.66024958,781.97,781.93,6.01438]
[1609615042761,18.66024958,781.97,781.94,15.0]
[1609615043963,18.66024958,781.97,781.93,6.01438]
[1609615050680,18.66024958,781.97,781.94,15.0]
[1609615050880,18.66024958,781.97,781.93,6.01438]
[1609615054881,1.0,781.96,781.93,6.01438]
[1609615056180,1.0,781.96,781.94,15.0]
[1609615057379,1.0,781.96,781.94,19.826]
[1609615057785,1.0,781.96,781.94,4.826]
[1609615058882,1.0,781.96,781.95,16.94699745]
[1609615066997,1.0,781.96,781.94,4.826]
[1609615067197,1.0,781.96,781.93,6.01438]
[1609615067497,0.6,781.96,781.93,6.01438]
[1609615082818,0.6,781.96,781.79,16.97422481]
[1609615083521,0.6,781.96,781.78,20.80509975]
[1609615083921,6.01438,781.89,781.83,6.01438]
[1609615084221,6.01438,781.89,781.78,20.80509975]
[1609615084424,6.01438,781.89,781.78,16.98409975]
[1609615084623,6.01438,781.89,781.56,17.00813197]
[1609615085228,0.6,781.96,781.56,17.00813197]
[1609615085422,0.6,781.96,781.26,15.0]
[1609615085423,0.6,781.96,781.51,17.01370331]
[1609615085822,0.6,781.96,781.79,6.01438]
[1609615087827,0.6,781.96,781.9,6.01438]
[1609615095838,6.01438,781.91,781.9,6.01438]
[1609615098143,6.01438,781.91,781.52,16.92930723]
[1609615098344,15.0,781.9,781.52,16.92930723]
[1609615098548,84.9893,781.85,781.52,16.92930723]
[1609615098748,15.0,781.84,781.52,16.92930723]
[1609615099749,15.0,781.84,781.41,3.065]
[1609615099946,6.01438,781.58,781.54,6.01438]
[1609615100148,21.01438,781.58,781.54,6.01438]
[1609615101148,6.01438,781.58,781.54,6.01438]
[1609615101548,21.01438,781.58,781.54,6.01438]
[1609615102245,21.01438,781.58,781.27,16.95370881]
[1609615102446,79.9838,781.55,781.27,16.95370881]
[1609615102645,15.0,781.54,781.27,16.95370881]
[1609615103245,15.0,781.54,780.42,15.0]
[1609615103246,15.0,781.54,781.17,16.98686704]
[1609615103948,6.01438,781.2,781.15,6.01438]
[1609615104548,15.0,781.54,781.15,6.01438]
[1609615104748,15.0,781.54,781.11,4.341]
[1609615105952,6.01438,781.21,781.11,4.341]
[1609615108056,3.342,781.52,781.11,4.341]
[1609615108057,6.01438,781.45,781.11,4.341]
[1609615109857,6.01438,781.45,781.25,6.01438]
[1609615113870,6.01438,781.45,781.11,4.341]
[1609615113871,6.01438,781.45,781.34,6.01438]
[1609615117277,88.5117,781.41,781.11,4.341]
[1609615117477,88.5117,781.41,781.02,16.9844486]
[1609615117676,103.5117,781.41,781.02,16.9844486]
[1609615118077,6.01438,781.27,781.1,6.01438]
[1609615121886,6.01438,781.14,781.1,6.01438]
[1609615124090,6.01438,781.14,780.87,16.93036339]
[1609615124291,6.01438,781.14,780.88,16.93456493]
[1609615125291,6.01438,781.14,780.81,2.986]
[1609615125991,6.01438,781.03,780.95,6.01438]
[1609615126891,104.2213,780.96,780.81,2.986]
[1609615127993,6.01438,780.82,780.81,2.986]
[1609615128494,8.59778,780.82,780.81,2.986]
[1609615128693,6.01438,780.82,780.81,2.986]
[1609615129494,6.01438,780.82,780.61,6.01438]
[1609615129895,2.5537,780.81,780.61,6.01438]
[1609615130096,6.01438,780.74,780.61,6.01438]
[1609615130494,6.01438,780.74,780.52,16.98722862]
[1609615130895,6.01438,780.74,780.53,16.99405606]
[1609615131095,6.01438,780.74,780.53,21.81605606]
[1609615131295,4.901,781.11,780.53,21.81605606]
[1609615131997,6.01438,781.06,780.79,6.01438]
[1609615132396,10.5757,781.04,780.79,6.01438]
[1609615133998,6.01438,780.92,780.79,6.01438]
[1609615136101,14.9616,780.9,780.79,6.01438]
[1609615136303,6.01438,780.92,780.79,6.01438]
[1609615137604,100.6993,780.84,780.62,16.97903744]
[1609615138103,6.01438,780.78,780.62,16.97903744]
[1609615138303,6.01438,780.78,780.61,6.01438]
[1609615139606,4.901,781.11,780.61,6.01438]
[1609615139807,12.0837,781.26,780.61,6.01438]
[1609615140005,3.744,781.27,780.61,6.01438]
[1609615140207,6.01438,781.12,780.93,6.01438]
[1609615140607,10.57938,781.12,780.93,6.01438]
[1609615142313,100.7583,781.03,780.93,6.01438]
[1609615142613,10.57938,781.12,780.93,6.01438]
[1609615142813,10.57938,781.12,780.91,0.4]
[1609615143014,78.7253,781.07,780.91,0.4]
[1609615144119,6.01438,780.92,780.91,0.4]
[1609615147117,4.565,781.12,780.91,0.4]
[1609615147319,15.0,781.31,780.91,0.4]
[1609615147517,15.0,781.3,780.91,0.4]
[1609615147717,18.901,781.3,780.91,0.4]
[1609615148118,6.01438,780.98,780.93,6.01438]
[1609615149320,3.081,781.1,780.93,6.01438]
[1609615150119,3.081,781.1,781.09,6.01438]
[1609615151620,3.901,781.3,781.09,6.01438]
[1609615152221,3.901,781.3,780.91,0.4]
[1609615152222,3.901,781.3,781.27,6.01438]
[1609615152922,6.01438,781.33,781.27,6.01438]
[1609615155631,21.01438,781.33,780.91,0.4]
[1609615155826,24.92938,781.33,780.91,0.4]
[1609615156227,6.01438,781.21,780.91,0.4]
[1609615158127,6.01438,781.21,781.04,6.01438]
[1609615160129,15.0,781.2,780.91,0.4]
[1609615160330,85.01,781.05,780.91,0.4]
[1609615160931,15.0,781.11,780.91,0.4]
[1609615161429,15.0,781.11,780.76,17.02492331]
[1609615162134,15.0,781.11,780.71,3.172]
[1609615162331,15.0,781.11,780.65,17.02295084]
[1609615162332,6.01438,780.77,780.68,6.01438]
[1609615163031,6.01438,780.77,780.18,26.30819676]
[1609615163032,15.0,780.76,780.54,17.03063163]
[1609615163233,91.6898,780.66,780.54,17.03063163]
[1609615163433,15.0,780.65,780.54,17.03063163]
[1609615164034,15.0,780.65,780.43,17.04331183]
[1609615164232,6.01438,780.44,780.43,17.04331183]
[1609615164432,21.01438,780.44,780.43,17.04331183]
[1609615164632,6.01438,780.44,780.43,17.04331183]
[1609615165033,6.01438,780.44,780.16,6.01438]
[1609615166231,6.01438,780.44,780.43,6.01438]
[1609615166633,2.998,780.66,780.43,6.01438]
[1609615168335,2.998,780.66,780.57,6.01438]
[1609615168537,6.01438,780.68,780.57,6.01438]
[1609615169135,3.863,780.93,780.57,6.01438]
[1609615170139,95.6894,780.98,780.57,6.01438]
[1609615170337,6.01438,780.88,780.77,6.01438]
[1609615170538,3.608,780.88,780.77,6.01438]
[1609615172243,3.608,780.88,780.87,6.01438]
[1609615174145,6.01438,781.13,780.87,6.01438]
[1609615174346,6.01438,781.13,781.02,6.01438]
[1609615174946,6.01438,781.13,780.63,17.03042865]
[1609615175146,9.03138,781.13,780.63,17.03042865]
[1609615175446,9.03138,781.13,780.59,17.03679192]
[1609615175647,3.017,781.13,780.59,32.03679192]
[1609615176348,3.017,781.13,781.12,6.01438]
[1609615177949,3.017,781.13,780.78,3.483]
[1609615178350,3.017,781.13,781.03,6.01438]
[1609615180153,18.915,781.33,781.03,6.01438]
[1609615180353,6.01438,781.31,781.03,6.01438]
[1609615180552,15.0,781.3,781.03,6.01438]
[1609615181153,15.0,781.3,780.59,17.05122944]
[1609615182053,6.01438,781.31,780.59,17.05122944]
[1609615182254,6.01438,781.31,780.29,15.0]
[1609615182255,6.01438,781.31,780.61,17.04895521]
[1609615182455,6.01438,781.12,781.02,6.01438]
[1609615182655,10.89938,781.12,781.02,6.01438]
[1609615183956,10.89938,781.12,780.6,17.04965148]
[1609615184460,6.01438,781.03,780.91,6.01438]
[1609615188764,4.885,781.12,780.91,6.01438]
[1609615189170,1.45238014,781.31,780.91,6.01438]
[1609615189374,5.36725349,781.33,780.91,6.01438]
[1609615190370,6.01438,781.21,781.18,6.01438]
[1609615190976,3.915,781.33,781.18,6.01438]
[1609615191175,1.45220755,781.39,781.18,6.01438]
[1609615191771,1.45213601,781.43,781.18,6.01438]
[1609615192471,1.45213601,781.43,781.28,6.01438]
[1609615192669,7.27028141,781.46,781.28,6.01438]
[1609615192670,1.45206016,781.45,781.28,6.01438]
[1609615193569,6.01438,781.46,781.28,6.01438]
[1609615193570,22.46646034,781.46,781.28,6.01438]
[1609615194169,22.46646034,781.46,780.72,17.03437498]
[1609615194369,26.49646034,781.46,780.72,17.03437498]
[1609615194569,20.48208034,781.46,781.05,6.01438]
[1609615195072,1.45216789,781.45,781.05,6.01438]
[1609615195971,1.45216789,781.45,780.7,17.03707197]
[1609615196172,1.4523299,781.4,780.66,17.03687446]
[1609615196372,84.9539,781.09,780.66,17.03687446]
[1609615196571,6.01438,780.77,780.66,17.03687446]
[1609615196971,15.0,780.76,780.66,17.03687446]
[1609615197171,15.0,780.76,780.6,6.01438]
[1609615197677,15.0,780.76,780.56,3.663]
[1609615197872,15.0,780.76,780.4,17.07170839]
[1609615198473,15.0,780.76,780.51,6.01438]
[1609615198673,15.0,780.75,780.51,3.706]
[1609615199072,19.793,780.75,780.51,3.706]
[1609615199772,19.793,780.75,780.28,17.08659992]
[1609615199974,4.793,780.75,780.28,17.08659992]
[1609615200574,6.01438,780.49,780.45,6.01438]
[1609615200774,13.7583,780.46,780.45,6.01438]
[1609615200973,13.7583,780.46,780.28,17.08659992]
[1609615201475,13.7583,780.46,780.16,17.10017182]
[1609615202476,6.01438,780.41,780.32,6.01438]
[1609615203478,21.01438,780.41,780.14,17.10609831]
[1609615203677,77.2962,780.34,780.14,17.10609831]
[1609615203877,77.2962,780.34,780.16,17.11297851]
[1609615204479,6.01438,780.24,780.14,6.01438]
[1609615205579,6.01438,780.24,780.1,17.14420691]
[1609615206380,3.752,780.42,780.08,20.42026471]
[1609615206582,3.752,780.42,780.19,6.01438]
[1609615209186,15.0,780.41,780.19,6.01438]
[1609615209385,72.7284,780.4,780.08,17.16457417]
[1609615209585,15.0,780.39,780.08,17.16457417]
[1609615209987,15.0,780.39,780.04,17.17250975]
[1609615210187,72.7284,780.4,780.04,17.17250975]
[1609615210489,6.01438,780.23,780.04,17.17250975]
[1609615211189,6.01438,780.23,780.03,6.01438]
[1609615211387,3.055,780.26,780.03,6.01438]
[1609615212487,3.055,780.26,780.25,6.01438]
[1609615215692,6.01438,780.34,780.25,6.01438]
[1609615216492,6.01438,780.34,780.33,6.01438]
[1609615221205,3.752,780.42,780.33,6.01438]
[1609615221404,79.3542,780.6,780.33,6.01438]
[1609615222609,79.3542,780.6,780.55,6.01438]
[1609615229312,79.3542,780.6,780.18,17.18571367]
[1609615229512,94.3542,780.6,780.18,17.18571367]
[1609615230312,94.3542,780.6,780.16,17.19456335]
[1609615230613,79.3542,780.6,780.45,6.01438]
[1609615230814,6.01438,780.61,780.45,6.01438]
[1609615231413,15.0,780.6,780.45,6.01438]
[1609615235817,15.0,780.6,779.89,3.387]
[1609615235818,15.0,780.6,780.04,17.19961064]
[1609615236417,6.01438,780.61,780.04,17.19961064]
[1609615236618,6.01438,780.47,780.28,6.01438]
[1609615237017,10.54138,780.47,780.28,6.01438]
[1609615237318,15.0,780.46,780.28,6.01438]
[1609615237717,15.0,780.46,780.04,17.19586704]
[1609615238118,102.2788,780.42,780.04,17.19586704]
[1609615238318,15.0,780.41,780.04,17.19586704]
[1609615238519,15.0,780.41,779.99,17.20933836]
[1609615238719,6.01438,780.26,780.03,6.01438]
[1609615241621,4.772,780.27,780.03,6.01438]
[1609615242720,4.772,780.27,780.24,6.01438]
[1609615243922,4.527,780.47,780.24,6.01438]
[1609615244123,1.45358166,780.6,780.24,6.01438]
[1609615244623,1.45336943,780.62,780.24,6.01438]
[1609615244823,6.01438,780.46,780.38,6.01438]
[1609615245024,10.19838,780.46,780.38,6.01438]
[1609615247726,25.19838,780.46,780.38,6.01438]
[1609615250535,25.19838,780.46,779.94,17.19512647]
[1609615250736,6.01438,780.38,780.17,6.01438]
[1609615250937,15.0,780.37,780.17,6.01438]
[1609615252239,91.2874,780.27,779.87,17.2284415]
[1609615252438,15.0,780.26,779.87,17.2284415]
[1609615252741,6.01438,780.16,779.89,6.01438]
[1609615252941,15.0,780.15,779.89,6.01438]
[1609615254943,15.0,780.14,779.89,6.01438]
[1609615255945,6.01438,780.16,779.89,6.01438]
[1609615256747,15.0,780.15,779.89,6.01438]
[1609615258249,6.01438,780.16,779.89,6.01438]
[1609615262753,6.01438,780.16,780.14,6.01438]
[1609615262954,95.8994,780.27,780.14,6.01438]
[1609615262955,4.612,780.27,780.14,6.01438]
[1609615263153,1.45388899,780.42,780.14,6.01438]
[1609615264554,17.514835,780.6,780.14,6.01438]
[1609615264555,1.45374581,780.48,780.14,6.01438]
[1609615264756,1.45374581,780.48,780.35,6.01438]
[1609615266058,1.45369451,780.62,780.35,6.01438]
[1609615266757,1.45369451,780.62,780.61,6.01438]
[1609615266965,1.45339523,780.71,780.61,6.01438]
[1609615268166,3.1424762,780.97,780.61,6.01438]
[1609615268167,1.45301683,780.81,780.61,6.01438]
[1609615268968,1.45301683,780.81,780.77,6.01438]
[1609615269168,6.01438,780.84,780.77,6.01438]
[1609615269969,1.45295916,780.95,780.77,6.01438]
[1609615270970,1.45295916,780.95,780.94,6.01438]
[1609615271669,6.01438,781.17,780.94,6.01438]
[1609615271870,15.0,781.16,780.94,6.01438]
[1609615272069,19.38,781.16,780.94,6.01438]
[1609615272973,6.01438,780.99,780.94,6.01438]
[1609615273170,9.92538,780.99,780.94,6.01438]
[1609615273672,9.92538,780.99,780.54,17.16958963]
[1609615274071,9.92538,780.99,780.48,3.07]
[1609615274673,9.92538,780.99,780.49,17.17481369]
[1609615274872,6.01438,780.88,780.87,6.01438]
[1609615283986,6.01438,780.88,780.57,17.15353902]
[1609615284890,6.01438,780.88,780.81,6.01438]
[1609615286289,6.01438,780.88,780.57,17.15353902]
[1609615286895,6.01438,780.88,780.63,6.01438]
[1609615288792,6.01438,780.88,780.73,0.4231]
[1609615289700,3.911,780.99,780.73,0.4231]
[1609615290095,1.45268724,781.13,780.73,0.4231]
[1609615290495,4.38,781.16,780.73,0.4231]
[1609615290696,1.45257949,781.22,780.73,0.4231]
[1609615290895,6.01438,781.17,780.97,6.01438]
[1609615291095,15.0,781.16,780.97,6.01438]
[1609615291295,15.0,781.16,780.73,0.4231]
[1609615292898,6.01438,780.96,780.74,6.01438]
[1609615293297,9.17038,780.96,780.74,6.01438]
[1609615297301,9.17038,780.96,780.73,0.4231]
[1609615297502,15.0,780.95,780.73,0.4231]
[1609615298704,9.17038,780.96,780.73,0.4231]
[1609615299105,6.01438,780.8,780.73,0.4231]
[1609615299307,9.46538,780.8,780.73,0.4231]
[1609615303216,3.451,780.8,780.73,0.4231]
[1609615304319,3.156,780.96,780.73,0.4231]
[1609615304517,3.171,780.8,780.73,0.4231]
[1609615305119,3.171,780.8,780.79,6.01438]
[1609615309524,15.0,780.9,780.79,6.01438]
[1609615310824,6.01438,780.91,780.79,6.01438]
[1609615311124,15.0,780.9,780.79,6.01438]
[1609615312928,6.01438,780.91,780.79,6.01438]
[1609615313128,21.01438,780.91,780.79,6.01438]
[1609615316131,21.01438,780.91,780.73,0.4231]
[1609615317032,6.01438,780.82,780.78,6.01438]
[1609615317231,15.0,780.81,780.73,0.4231]
[1609615318636,6.01438,780.82,780.73,0.4231]
[1609615318839,15.0,780.95,780.73,0.4231]
[1609615319035,6.01438,780.94,780.78,6.01438]
[1609615321040,6.01438,780.94,780.9,6.01438]
[1609615323946,3.156,780.96,780.9,6.01438]
[1609615324346,1.45247969,781.22,780.9,6.01438]
[1609615325151,1.45247969,781.22,781.15,6.01438]
[1609615325548,1.45222087,781.27,781.15,6.01438]
[1609615325848,1.45222087,781.27,780.74,15.0]
[1609615326049,5.90522087,781.27,780.74,15.0]
[1609615326450,4.453,781.27,780.74,15.0]
[1609615327051,4.453,781.27,781.26,6.01438]
[1609615331155,3.882,781.44,781.26,6.01438]
[1609615331852,1.45163346,781.78,781.26,6.01438]
[1609615332456,1.45160329,781.79,781.26,6.01438]
[1609615333157,1.45153693,781.81,781.63,6.01438]
[1609615333758,1.45149818,781.82,781.63,6.01438]
[1609615334857,6.01438,781.85,781.63,6.01438]
[1609615334858,1.45138417,781.83,781.63,6.01438]
[1609615335157,1.45138417,781.83,781.76,6.01438]
[1609615335558,6.01438,781.85,781.76,6.01438]
[1609615336360,1.45125607,781.96,781.76,6.01438]
[1609615337159,15.3184217,781.97,781.76,6.01438]
[1609615337358,15.3184217,781.97,781.92,6.01438]
[1609615337961,13.86724958,781.97,781.92,6.01438]
[1609615352175,13.86724958,781.97,781.79,3.709]
[1609615353577,13.86724958,781.97,781.89,6.01438]
[1609615354681,1.0,781.96,781.89,6.01438]
[1609615354877,5.88,781.96,781.89,6.01438]
[1609615360583,5.88,781.96,781.9,15.0]
[1609615363387,5.88,781.96,781.94,17.00478971]
[1609615363587,5.88,781.96,781.95,15.0]
[1609615363786,8.4135,781.96,781.95,15.0]
[1609615364286,8.4135,781.96,781.94,21.53178971]
[1609615364892,5.88,781.96,781.94,21.53178971]
[1609615365886,2.538,781.95,781.94,21.53178971]
[1609615366688,2.538,781.95,781.94,36.53178971]
[1609615367189,2.538,781.95,781.94,19.527]
[1609615367390,1.0,781.96,781.94,19.527]
[1609615368291,1.0,781.96,781.94,4.527]
[1609615368690,2.5456,781.95,781.94,4.527]
[1609615368888,1.0,781.96,781.9,15.0]
[1609615369289,1.0,781.96,781.89,6.01438]
[1609615370891,1.0,781.96,781.91,17.02042731]
[1609615371491,1.0,781.96,781.89,6.01438]
[1609615373394,1.0,781.96,781.83,17.03187184]
[1609615374397,1.0,781.96,781.78,4.128]
[1609615374596,1.0,781.96,781.69,17.05254248]
[1609615375497,6.01438,781.82,781.69,17.05254248]
[1609615375898,1.0,781.96,781.69,17.05254248]
[1609615376097,1.0,781.96,781.69,21.41854248]
[1609615377505,1.0,781.96,781.9,6.01438]
[1609615378703,1.0,781.96,781.91,15.0]
[1609615379805,1.0,781.96,781.9,6.01438]
[1609615380208,1.0,781.96,781.9,21.01438]
[1609615381208,1.0,781.96,781.9,6.01438]
[1609615383610,6.01438,781.93,781.9,6.01438]
[1609615386212,1.0,781.96,781.9,6.01438]
[1609615387612,7.01438,781.96,781.9,6.01438]
[1609615388113,7.01438,781.96,781.69,4.366]
[1609615388313,7.01438,781.96,781.58,17.07902878]
[1609615389214,7.01438,781.96,781.54,17.08926829]
[1609615389617,6.01438,781.88,781.72,6.01438]
[1609615391519,1.0,781.96,781.72,6.01438]
[1609615391719,1.0,781.96,781.8,6.01438]
[1609615393424,1.0,781.96,781.59,17.08178069]
[1609615393625,6.01438,781.82,781.71,6.01438]
[1609615394126,6.01438,781.82,781.58,17.08426463]
[1609615394727,9.96038,781.82,781.58,17.08426463]
[1609615395426,9.96038,781.82,781.12,15.0]
[1609615395427,9.96038,781.82,781.49,17.16358015]
[1609615395628,6.01438,781.68,781.54,6.01438]
[1609615401237,6.01438,781.68,780.87,26.55792155]
[1609615401238,6.01438,781.68,781.29,17.19089271]
[1609615401839,6.01438,781.32,781.29,17.19089271]
[1609615402239,6.01438,781.32,781.23,17.1994184]
[1609615403841,91.7937,781.48,781.23,17.1994184]
[1609615404042,4.771,781.52,781.23,17.1994184]
[1609615404243,104.0116,781.43,781.23,17.1994184]
[1609615405843,6.01438,781.24,781.23,17.1994184]
[1609615407542,6.01438,781.24,781.23,1.84e-05]
[1609615408146,6.01438,781.24,780.95,6.01438]
[1609615408147,21.01438,781.24,780.99,20.31976952]